Cogmind - Beta 16 @@@ ROGUE MODE // 2026.01.02 @ 19:25:44 Player: KZ_RAD Result: Destroyed by S-27 Virus with Autogun Performance ------------- Evolutions (3) 1500 Regions Visited (4) 800 Robots Destroyed (32) 160 Value Destroyed (979) 979 Prototype IDs (1) 20 Alien Tech Used (0) 0 Bonus (0) 0 TOTAL SCORE: 3459 Bonus ------- None Cogmind --------- Core Integrity 0/700 Matter 415/500 Energy 290/290 System Corruption 5% Temperature Cool (0) Movement Core (250) Ox4 Location -7/Factory Parts ------- > --- POWER (1) -------- Improved Deuterium Engine > --- PROPULSION (4) --- (None) > --- UTILITY (6) ------ High-capacity Matter Pod Terrain Scan Processor Authchip [R/Combat] > --- WEAPON (2) ------- (None) > --- INVENTORY (5) ---- Micro Nuclear Core Authchip [R/Combat] Peak State ------------ > --- POWER ------------ Micro Nuclear Core > --- PROPULSION ------- Aluminum Leg Improved Titanium Leg > --- UTILITY ---------- Improved Heat Sink High-capacity Matter Pod Advanced Weight Redist. System Improved Light Armor Plating Authchip [R/Combat] Recalibrator > --- WEAPON ----------- Advanced Beam Rifle Particle Cannon > --- INVENTORY -------- Improved Deuterium Engine Authchip [R/Combat] Arc Projector Flak Gun [Rating: 34] Favorites ----------- Power Light Ion Engine Engine Light Ion Engine Power Core Light Nuclear Core Propulsion Wheel Leg Aluminum Leg Wheel Wheel Hover Unit Backup Propulsion I Flight Unit Flight Unit Utility Improved Heat Sink Device Improved Heat Sink Storage Medium Matter Pod Processor Terrain Scan Processor Hackware Authchip [R/Combat] Protection Improved Propulsion Shielding Weapon Advanced Beam Rifle Energy Gun Advanced Beam Rifle Energy Cannon Particle Cannon Ballistic Gun Assault Rifle Build | -11 -10 -10 -8 -7 ------- Run | Yrd Mat Sub Mat Fac Slots Evolved 6 | . . . 4 2 Power . | . . . . . Propulsion 2 | . . . 2 . Utility 4 | . . . 2 2 Weapon . | . . . . . Parts Attached 48 | 6 3 6 14 19 Power 7 | 1 . 1 2 3 Engine 5 | 1 . 1 1 2 Core 2 | . . . 1 1 Reactor . | . . . . . Propulsion 15 | 3 1 3 5 3 Treads . | . . . . . Leg 4 | . . . 1 3 Wheel 7 | 3 1 3 . . Hover . | . . . . . Flight 4 | . . . 4 . Utility 17 | . 2 1 4 10 Device 11 | . 1 1 3 6 Storage 2 | . 1 . . 1 Processor 1 | . . . . 1 Hackware 1 | . . . . 1 Protection 2 | . . . 1 1 Artifact . | . . . . . Weapon 9 | 2 . 1 3 3 Energy Gun 4 | . . . 3 1 Energy Cannon 1 | . . . . 1 Ballistic Gun 4 | 2 . 1 . 1 Ballistic Cannon . | . . . . . Launcher . | . . . . . Special Weapon . | . . . . . Impact Weapon . | . . . . . Slashing Weapon . | . . . . . Piercing Weapon . | . . . . . Special Melee Weapon . | . . . . . Unidentified Prototypes 1 | . . . 1 . Parts Lost 30 | . . 3 6 21 Power 4 | . . 1 . 3 Propulsion 7 | . . . 3 4 Utility 13 | . . 1 3 9 Weapon 6 | . . 1 . 5 Highest Loss Streak 8 | . . 3 6 8 To Critical Strikes . | . . . . . Average Backups 3 | 1 4 4 2 3 Power 1 | . 2 2 . . Propulsion . | . 2 . . . Utility 1 | . . 1 1 1 Weapon . | . . . . 1 Tool/Special . | . . . . . Unused Backups 6 | . 2 . 2 2 Power 2 | . . . 1 1 Propulsion . | . . . . . Utility 1 | . . . . 1 Weapon 3 | . 2 . 1 . Tool/Special . | . . . . . Average Slot Usage (%) 72 | . 80 90 71 59 Engine 6 | . 14 14 8 . Core 2 | . . . . 5 Leg 4 | . . . . 8 Wheel 10 | . 28 25 5 . Device 15 | . 1 11 22 17 Storage 8 | . 7 14 7 4 Hackware 1 | . . . . 2 Protection 2 | . . . 1 5 Energy Gun 6 | . . . 16 8 Energy Cannon 1 | . . . . 2 Ballistic Gun 9 | . 28 24 1 . Peak Build Rating 34 | 5 7 11 22 34 Average Rating 15 | 4 5 7 18 22 On Entrance 8 | . 5 7 9 19 Avg Prop Armor Cover (%) 5 | . . 5 5 . Naked Turns . | . . . . . Heaviest Build 23 | 7 10 12 15 23 Greatest Support 40 | 20 20 40 20 39 Greatest Overweight (x) 5 | . . . 2 5 Average Overweight (x) . | . . . . . Largest Inventory Capacity 5 | 5 5 5 5 5 Average Capacity 5 | 5 5 5 5 5 Most Carried 5 | 5 5 5 5 5 Average Carried 3 | 2 4 4 2 3 Final Capacity 5 | 5 5 5 5 5 Final Carried 5 | 5 5 5 1 2 Class Distribution -------------------- 79% | Mutant 20% | Scavenger-Mutant Dominant Class ---------------- Mutant | -10/Materials Mutant | -10/Subcaves Scavenger-Mutant | -8/Materials Mutant | -7/Factory Resources | -11 -10 -10 -8 -7 ----------- Run | Yrd Mat Sub Mat Fac Matter Collected 1028 | 308 29 296 105 290 Remotely . | . . . . . Salvage Created 1390 | 116 . 257 462 555 Parts 81 | 10 . 14 23 34 Haulers Intercepted 1 | . . . . 1 Recyclers Shooed 2 | . 2 . . . Parts Field Recycled . | . . . . . Retrieved Matter . | . . . . . Parts Self-Destructed 1 | . . 1 . . Prevented . | . . . . . Parts Restored . | . . . . . Kills | -11 -10 -10 -8 -7 ------- Run | Yrd Mat Sub Mat Fac Combat Hostiles Destroyed 25 | 1 . 3 14 7 Guns 20 | 1 . 3 12 4 Cannons 2 | . . . . 2 Classes Destroyed 10 | 3 . 1 3 3 Worker 2 | 1 . . . 1 Tunneler 2 | 2 . . . . Hauler 1 | . . . . 1 Recycler 2 | . . . . 2 Swarmer 8 | . . . 8 . Grunt 7 | 1 . . 4 2 Duelist 2 | . . . 1 1 Sentry 3 | . . . 1 2 Programmer 2 | . . . . 2 Subdweller 3 | . . 3 . . Best Kill Streak 6 | 3 . 2 4 6 Combat Bots Only 4 | 1 . 2 4 4 Max Kills in Single Turn 2 | 1 . 1 2 1 Gunslinging 1 | . . . 1 . Exploded . | . . . . . Melee . | . . . . . Uniques/NPCs Destroyed . | . . . . . Combat | -11 -10 -10 -8 -7 -------- Run | Yrd Mat Sub Mat Fac Hostile Shots Fired 568 | 2 . 22 107 437 Missed 233 | 2 . 9 35 187 Hits 335 | . . 13 72 250 Melee 2 | . . . . 2 Projectile 333 | . . 13 72 248 Critical Strikes 7 | . . . 1 6 Actively Blocked 1 | . . . 1 . Part Disruptions 1 | . . . . 1 Damage Taken 3106 | . . 269 745 2092 Core 944 | . . 40 195 709 Absorbed by Shields . | . . . . . Redirected to Shielding 102 | . . . 19 83 Core Remaining (%) 82 | 100 . 84 64 . Volleys Fired 119 | 8 5 25 36 45 Largest 2 | 2 2 2 2 2 Hottest 129 | 40 40 50 122 129 Shots Fired 218 | 16 10 45 72 75 Gun 198 | 16 10 45 72 55 Cannon 20 | . . . . 20 Launcher . | . . . . . Special . | . . . . . Kinetic 81 | 16 10 45 . 10 Thermal 134 | . . . 72 62 Explosive . | . . . . . Electromagnetic 3 | . . . . 3 Robot Hit Streak 17 | 5 4 17 12 8 Robot Miss Streak 5 | 3 2 1 4 5 Penetration Max . | . . . . . Secondary Targets 2 | . . . 2 . Max Gunslinging Chain 1 | . . . 1 . Shots Hit Robots 141 | 9 6 35 42 49 Core Hits 60 | 4 1 13 18 24 Critical Kills 1 | . . . . 1 Critical Parts Destroyed . | . . . . . Critical Strikes 10 | . . 1 6 3 Burn 8 | . . . 6 2 Meltdown 1 | . . . . 1 Destroy 1 | . . 1 . . Melee Attacks . | . . . . . Impact . | . . . . . Slashing . | . . . . . Piercing . | . . . . . Sneak Attacks . | . . . . . Combat Hostiles . | . . . . . Follow-up Attacks . | . . . . . Damage Inflicted 2632 | 115 73 505 880 1059 Guns 2232 | 115 73 505 880 659 Cannons 273 | . . . . 273 Explosions 127 | . . . . 127 Melee . | . . . . . Ramming . | . . . . . Kinetic 854 | 115 73 505 . 161 Thermal 1623 | . . . 880 743 Explosive 127 | . . . . 127 Electromagnetic 28 | . . . . 28 Impact . | . . . . . Slashing . | . . . . . Piercing . | . . . . . Highest Corruption 5 | . . . . 5 Average Corruption 3 | . . . . 3 Corruption Purged . | . . . . . Corruption Blocked . | . . . . . Effects 2 | . . . . 2 Message Errors 1 | . . . . 1 Matter Fused 1 | . . . . 1 Overload Shots . | . . . . . Overflow Damage 24 | . . . . 24 Projectiles . | . . . . . Explosions 24 | . . . . 24 Melee . | . . . . . Knockbacks . | . . . . . Impact . | . . . . . Kinetic . | . . . . . Secondary . | . . . . . Self-Inflicted Damage . | . . . . . Shots . | . . . . . Rammed . | . . . . . Targets Rammed . | . . . . . Kicked . | . . . . . Crushed . | . . . . . Highest Temperature 247 | . 6 . 150 247 Average Temperature 58 | . 6 . 50 77 Received Heat Transfer 690 | . . 78 189 423 Siege Activations . | . . . . . Martial Activations . | . . . . . Shielding Activations . | . . . . . Robots Disrupted . | . . . . . Combat Hostiles . | . . . . . Robots Corrupted . | . . . . . Combat Hostiles . | . . . . . Parts Fried . | . . . . . Impact Corruptions . | . . . . . Robots Melted 3 | . . . 2 1 Combat Hostiles 3 | . . . 2 1 Parts Melted 10 | . . 1 7 2 Heat Transferred 3552 | . . . 2072 1480 Parts Sabotaged . | . . . . . Parts Stolen . | . . . . . Parts Stripped . | . . . . . Power Chain Reactions . | . . . . . Alert | -11 -10 -10 -8 -7 ------- Run | Yrd Mat Sub Mat Fac Maximum Alert Level . | . . . . . Low Security (%) 100 | 100 100 . 100 100 Level 1 . | . . . . . Level 2 . | . . . . . Level 3 . | . . . . . Level 4 . | . . . . . Level 5 . | . . . . . High Security . | . . . . . Max Security . | . . . . . Peak Influence 197 | 20 7 . 197 188 Initial 75 | . 6 . . 75 Average 40 | 6 1 . 97 27 Influence Increases 763 | 35 8 . 397 323 Destroy 0b10 Robot/C 440 | 20 . . 280 140 Destroy 0b10 Robot/NC 35 | 15 . . . 20 Destroy Leader 102 | . . . 50 52 Successful Hack 18 | . 7 . 6 5 Disable Machine 90 | . . . . 90 Destroy Structure 18 | . 1 . 1 16 Lose Combat Pursuer 60 | . . . 60 . Influence Decreases 695 | 25 18 . 230 422 Entered New Map 96 | . 4 . . 92 Time Decay 409 | 25 14 . 170 200 Lost Part 190 | . . . 60 130 Squads Dispatched 5 | . 1 . . 4 Investigation 1 | . 1 . . . Extermination 2 | . . . . 2 Reinforcement . | . . . . . Assault . | . . . . . Garrison 2 | . . . . 2 Intercept . | . . . . . Searches Triggered . | . . . . . Construction Impeded . | . . . . . Haulers Reinforced . | . . . . . Active Scanning Responses . | . . . . . Cargo Convoy Interrupts . | . . . . . Stealth | -11 -10 -10 -8 -7 --------- Run | Yrd Mat Sub Mat Fac Distress Signals 2 | . 1 . 1 . Communications Jammed . | . . . . . Distress Signals . | . . . . . Times Spotted 37 | 1 1 4 18 13 Peak Tracking Total 6 | 1 4 2 6 3 Tactical Retreats 3 | . . . 3 . Traps | -11 -10 -10 -8 -7 ------- Run | Yrd Mat Sub Mat Fac Traps Triggered 3 | . . . . 3 Indirectly . | . . . . . Trap Hack Attempts . | . . . . . Triggered . | . . . . . Disarmed . | . . . . . Reprogrammed . | . . . . . Reused . | . . . . . Traps Extracted . | . . . . . Installed . | . . . . . Triggered . | . . . . . Machines | -11 -10 -10 -8 -7 ---------- Run | Yrd Mat Sub Mat Fac Machines Disabled 6 | . . . . 6 Max in Single Turn 3 | . . . . 3 Machines Repaired . | . . . . . Machines Dismantled . | . . . . . Machines Sabotaged . | . . . . . Overloaded Fab Kills . | . . . . . Hacking | -11 -10 -10 -8 -7 --------- Run | Yrd Mat Sub Mat Fac Machines Accessed 9 | . 2 . 3 4 Terminals 3 | . 1 . 1 1 Fabricators . | . . . . . Repair Stations 2 | . . . 1 1 Recycling Units 2 | . 1 . . 1 Scanalyzers 1 | . . . 1 . Garrison Access 1 | . . . . 1 Total Hacks 12 | . 4 . 4 4 Successful 7 | . 4 . 2 1 Failed 5 | . . . 2 3 Catastrophic 3 | . . . 1 2 Database Lockouts . | . . . . . Manual . | . . . . . Terminals 3 | . 1 . 1 1 Fabricators . | . . . . . Repair Stations 3 | . . . 2 1 Recycling Units 4 | . 3 . . 1 Scanalyzers 1 | . . . 1 . Garrison Access 1 | . . . . 1 Terminal Hacks 2 | . 1 . . 1 Open DSF 1 | . . . . 1 Registered Components 1 | . 1 . . . Fabricator Hacks . | . . . . . Repair Station Hacks 1 | . . . 1 . Refit 1 | . . . 1 . Recycling Unit Hacks 3 | . 3 . . . Recycle Component 2 | . 2 . . . Retrieve Matter 1 | . 1 . . . Scanalyzer 1 | . . . 1 . Retrieve Study 1 | . . . 1 . Garrison Access Hacks . | . . . . . Unauthorized Hacks . | . . . . . Terminals . | . . . . . Fabricators . | . . . . . Repair Stations . | . . . . . Recycling Units . | . . . . . Scanalyzers . | . . . . . Garrison Access . | . . . . . Data Cores Recovered . | . . . . . Used . | . . . . . Hacking Detections 4 | . 1 . 1 2 Full Trace Events 1 | . 1 . . . Feedback Events . | . . . . . Feedback Blocked . | . . . . . Robot Schematics Acquired . | . . . . . Robots Built . | . . . . . Authchips . | . . . . . Time . | . . . . . Total Robot Build Rating . | . . . . . Part Schematics Acquired . | . . . . . Parts Built . | . . . . . Authchips . | . . . . . Time . | . . . . . Total Part Build Rating . | . . . . . Part Studies Acquired 1 | . . . 1 . Parts Repaired . | . . . . . Time . | . . . . . Parts Recycled 2 | . 2 . . . Recycled Matter . | . . . . . Retrieved Matter . | . . . . . Retrieved Components . | . . . . . Parts Scanalyzed . | . . . . . Part Schematics Acquired . | . . . . . Parts Damaged . | . . . . . Bothacking | -11 -10 -10 -8 -7 ------------ Run | Yrd Mat Sub Mat Fac Used RIF Installer . | . . . . . Robots Hacked . | . . . . . Non-combat . | . . . . . Combat . | . . . . . Robot Hacks Applied . | . . . . . Relay Couplers Released . | . . . . . Fabnet Peak Effective % . | . . . . . Robots Rewired . | . . . . . Allies Hacked . | . . . . . Hacks Repelled . | . . . . . Allies | -11 -10 -10 -8 -7 -------- Run | Yrd Mat Sub Mat Fac Total Allies . | . . . . . Largest Group . | . . . . . Highest-Rated Group . | . . . . . Highest-Rated Ally . | . . . . . Total Orders . | . . . . . Ally Attacks . | . . . . . Total Damage . | . . . . . Kills . | . . . . . Allies Corrupted . | . . . . . Allies Melted . | . . . . . Intel | -11 -10 -10 -8 -7 ------- Run | Yrd Mat Sub Mat Fac Active Infowar (turns) 1381 | . 17 489 345 530 Optics 308 | . . . 308 . Sensors 858 | . 17 489 262 90 ECM 477 | . . . 37 440 Robot Analysis Total . | . . . . . Derelict Logs Recovered 1 | . . 1 . . Drone Launches . | . . . . . Drone Recoveries . | . . . . . Exploration | -11 -10 -10 -8 -7 ------------- Run | Yrd Mat Sub Mat Fac Turns Passed 2226 | 114 141 605 387 979 Spaces Moved 1499 | 98 146 564 218 473 Core 26 | 16 . . . 10 Treads . | . . . . . Legs 483 | . . . 20 463 Wheels 912 | 82 146 564 120 . Hover 10 | . . . 10 . Flight 68 | . . . 68 . Fastest Speed 34 | 50 80 80 34 120 Average Speed 112 | 75 80 91 113 154 Slowest Speed 300 | 80 80 110 245 300 Overloaded Moves . | . . . . . Propulsion Burnouts . | . . . . . Robots Hopped . | . . . . . Potential Cave-ins . | . . . . . Cave-ins Triggered . | . . . . . Exploration Rate (%) 20 | 5 30 31 24 13 Regions Visited 4 Branch Regions 1 Pre-discovered Areas . | . . . . . Known Exits Taken . | . . . . . Unknown Exits Taken 4 | 1 1 1 1 . Scrap Searched . | . . . . . Spaces Dug . | . . . . . Terrain Destroyed 17 | . . . . 17 Melee . | . . . . . Projectile . | . . . . . AOE 17 | . . . . 17 Terrain Rammed . | . . . . . Walls Destroyed . | . . . . . Machines Disabled . | . . . . . Actions | -11 -10 -10 -8 -7 --------- Run | Yrd Mat Sub Mat Fac Total 1830 | 121 159 611 290 649 Wait 75 | . . . . 75 Move 1495 | 97 145 563 217 473 Hop . | . . . . . Pick Up 59 | 10 5 9 12 23 Fast Attach . | . . . . . Attach 43 | 5 2 3 11 22 Detach . | . . . . . Swap 10 | 1 1 4 4 . Drop 19 | . 1 7 10 1 Fire 119 | 8 5 25 36 45 Melee . | . . . . . Ram . | . . . . . Kick . | . . . . . Crush . | . . . . . Escape Stasis 10 | . . . . 10 Rewire . | . . . . . Trap . | . . . . . Miscellaneous . | . . . . . Route ------- -11/Scrapyard -10/Materials (discovered 2 exits: [*Min] / [*Sub]) -10/Subcaves (discovered 2 exits: *Mat / [*Scr]) -8/Materials -7/Factory History --------- Turn | Location | Event 2 | -11/Scrapyard | Met Revision 17 59 | -11/Scrapyard | Discovered new exit (range 8) 115 | -11/Scrapyard | Entered Materials 116 | -10/Materials | Met a group of wandering Federalists 157 | -10/Materials | Discovered new exit (range 15) 208 | -10/Materials | Lost 3 allies 254 | -10/Materials | Discovered new exit (range 3) 256 | -10/Materials | Entered Subcaves 257 | -10/Subcaves | Continued accompanying wandering Federalists (2) 257 | -10/Subcaves | Approached by a straggling Scientist 280 | -10/Subcaves | Discovered new exit (range 7) 320 | -10/Subcaves | Build established: Mutant 349 | -10/Subcaves | Ambushed by Subdwellers from Twisted Machinery 402 | -10/Subcaves | Lost 3 parts (1p1u1w) 454 | -10/Subcaves | Learned Materials stockpile data 646 | -10/Subcaves | A swath of the cavern ceiling suddenly collapsed 785 | -10/Subcaves | Scientist uncovered a shortcut to Scraptown 861 | -10/Subcaves | Entered Materials 861 | -8/Materials | Evolved 4 slots: Propulsion x2, Utility x2 1206 | -8/Materials | Lost 6 parts (3n3u) 1239 | -8/Materials | Discovered new exit (range 4) 1248 | -8/Materials | Entered Factory 1248 | -7/Factory | Evolved 2 slots: Utility x2 1747 | -7/Factory | Lost 7 parts (1p4u2w) 2088 | -7/Factory | Garrison activated, responded to threat 2119 | -7/Factory | Core integrity fell below 50% 2152 | -7/Factory | Core integrity fell below 20% 2168 | -7/Factory | Lost 8 parts (1p2n2u3w) 2227 | -7/Factory | Destroyed by S-27 Virus with Autogun Last Messages --------------- Flak Gun destroyed. Y-54 Guardian destroyed. K-01 Serf collects debris. Arc Projector destroyed. K-01 Serf destroyed. MB#Z#L S7V5EQZ9O>2HUUJ FJV1A7TCMU Acquired 12 matter. Acquired Imp. Sensor Array. Imp. Heat Sink destroyed. Carbon-fiber Leg destroyed. Mic. Nuclear Core destroyed. Acquired 44 matter. Acquired Aluminum Leg. Imp. Deuterium Engine destroyed. Acquired Imp. Deuterium Engine. Acquired Reaction Control System. Aluminum Leg destroyed. Adv. Weight Redist. System destroyed. Reaction Control System destroyed. Imp. Sensor Array destroyed. Map ----- +----------------------------------------------------+ | ?????????????? ##?????????? | | ?????????????? """ """ #?????????? | | ???????????? """ """ #?????????? | | ???????????? """ """ +?????????? | | ???????????? #?????????? | | ???????????? ??????????? | | ???????????? #??????????? | | ???????????? ] * #??????????? | | ??????????????##################!% #??????????? | | ????????????????????????????????#! #??????????? | | ????????????????????????????????# #??????????? | | ????????????????????????????????# #??????????? | | ????????????????????????????????#! ^ #??????????? | | ????????????????????????????????# ^^ #??????????? | | ???????????????????????????????## ##?????????? | | ????????????????????????########* = #?????????? | | ????????????????????????# ## = ########## | | ????????????????????????# ## | | ????????????????????????# ## | | ????????????????????????# ## ! | | ????????????????????????# """## ! ########### | | ????????????????????????# s"""## %! #?????????? | | ????????????????????????# s"""####[ *###?????????? | | ????????????????????????# Y #??#% #???????????? | | ????????????????????????# """#??#! #???????? ?? | | ????????????????????????#@ """#??# #?????? | | ????????????????????????# """#??# #???? ! | | ??????????????????#####?# #??# #?? " | | ??????????????????# ##+####### # | | ??????????????????# + | | ??????????????????# " ! # """""" ?? | | ??????????????????# #??""""?????? | | ??????????????????# ! ##+########+##????""?????? | | ??????????????????### ##????????? #????????????? | | ????????????????????# ????????? #????????????? | | ???????????????????? ???????? #????????????? | | ???????????????????#??????? #????????????? | | ????????????????????????? ?????????????? | | ????????????????????????# ?????????????? | | ????????????????????????# ?????????????? | | ????????????????????????############?????????????? | | | | | | | | | | | | | | | | | | | +----------------------------------------------------+ Best States ------------- Heat Dissipation 48 Energy Generation 16 Energy Capacity 290 Matter Stores 420 Matter Capacity 500 Sight Range 21 Robot Scan Range 15 Terrain Scan Density 85 ECM Strength 1 Additional Mass Support 9 Armor Coverage 150 Propulsion Shielding 66 Evasion (%) 63 Authchip Count 2 Item Schematics ----------------- None Robot Schematics ------------------ None Fabricated ------------ Nothing Repaired ---------- Nothing Studied --------- Flight Unit | -8/Materials | Hacked Alien Tech Used ----------------- None Achievements -------------- Crack Shot DATA ERROR: Steam Global Achievement% Fitting Room I Have A Map? It's Just You Item+ Made in Tau Ceti IV Nice Directions, Buddy Risk Taker Spot Them First Strength In Numbers That Tickles Troublemaker Challenges ------------ None Game ------ Seed MetafiberStormStorage Manual? 0 Play Time 00:54:34 Cumulative 1.4 hours Start 2026.01.02 @ 17:56:08 End 2026.01.02 @ 19:25:44 Sessions 1 Manual Loads 0 Difficulty Rogue Special Mode None Game No. 2 Rogue 2 Adventurer 0 Explorer 0 Win Type - Total 0 Types 0/0/0/0/0/0/0/0/0/0 Lore% 0 Gallery% 3 Achievement% 5 Wizard Run 0 Options --------- Layout 1 ASCII 0 Keyboard 0 Movement Mouse Keybinds 0 Fullscreen 1 Font 32/SmallcapsGlow Map View 50x35 Zoom Use 0% Tactical HUD 0 Map Filters NONE Filters NONE Steam 1 RUN: 5ff913d2-3e1e-4b40-b56c-9b819c3d7d12